fUSD/lending_fUSD_20251212
["ID","MTS","AMOUNT","RATE_DAILY","PERIOD"]
[398341611,1765538092020,-500.0,0.00040821,30]
[398341612,1765538092030,-500.0,0.00040821,30]
[398341613,1765538092039,-720.32,0.00040821,30]
[398341614,1765538092049,-509.99,0.00040821,30]
[398341615,1765538092058,-500.0,0.00040821,30]
[398341616,1765538092067,-752.38,0.00040821,30]
[398341617,1765538092076,-899.81,0.00040821,30]
[398341618,1765538092086,-500.0,0.00040821,30]
[398341619,1765538092095,-500.0,0.00040821,30]
[398341620,1765538092105,-500.0,0.00040821,30]
[398341621,1765538092114,-634.12,0.00040821,30]
[398341622,1765538092123,-1738.8,0.00040821,30]
[398341623,1765538092134,-500.0,0.00040821,30]
[398341624,1765538092143,-622.13,0.00040821,30]
[398341625,1765538092153,-500.0,0.00040821,30]
[398341626,1765538092163,-10008.33,0.00040821,30]
[398341627,1765538092172,-1816.12,0.00040821,30]
[398341628,1765538092182,-1222.19,0.00040821,30]
[398341629,1765538092192,-500.0,0.00040821,30]
[398341630,1765538092202,-506.67,0.00040821,30]
[398341631,1765538092211,-614.15,0.00040821,30]
[398341632,1765538092221,-853.5,0.00040821,30]
[398341633,1765538092231,-867.61,0.00040821,30]
[398341634,1765538092240,-500.0,0.00040821,30]
[398341635,1765538092249,-1730.62,0.00040821,30]
[398341636,1765538092258,-500.0,0.00040821,30]
[398341637,1765538092267,-459.55650782,0.00040821,30]
[398341638,1765538092277,-500.0,0.00040821,30]
[398341639,1765538092286,-642.79,0.00040821,30]
[398341640,1765538092296,-5043.62,0.00040821,30]
[398341641,1765538092305,-2044.69,0.00040821,30]
[398341642,1765538092314,-500.0,0.00040821,30]
[398341643,1765538092323,-500.0,0.00040821,30]
[398341644,1765538092332,-1215.55,0.00040821,30]
[398341645,1765538092342,-500.0,0.00040821,30]
[398341646,1765538092351,-500.0,0.00040821,30]
[398341647,1765538092360,-500.0,0.00040821,30]
[398341648,1765538092370,-500.0,0.00040821,30]
[398341649,1765538092379,-1545.49,0.00040821,30]
[398341650,1765538092389,-660.88,0.00040821,30]
[398341651,1765538092398,-1589.48,0.00040821,30]
[398341652,1765538092407,-628.02,0.00040821,30]
[398341653,1765538092417,-626.53,0.00040821,30]
[398341654,1765538092427,-602.06,0.00040821,30]
[398341655,1765538092437,-571.87037989,0.00040821,30]
[398341656,1765538092446,-840.42,0.00040821,30]
[398341657,1765538092455,-500.0,0.00040821,30]
[398341658,1765538092464,-699.47,0.00040821,30]
[398341659,1765538092473,-905.19,0.00040821,30]
[398341660,1765538092482,-752.57,0.00040821,30]
[398341661,1765538092491,-2585.93,0.00040821,30]
[398341662,1765538092500,-789.34,0.00040821,30]
[398341663,1765538092509,-3440.78,0.00040821,30]
[398341664,1765538092518,-563.79,0.00040821,30]
[398341665,1765538092526,-500.0,0.00040821,30]
[398341666,1765538092536,-500.0,0.00040821,30]
[398341667,1765538092545,-571.37,0.00040821,30]
[398341668,1765538092554,-500.54,0.00040821,30]
[398341669,1765538092563,-500.0,0.00040821,30]
[398341670,1765538092573,-500.0,0.00040821,30]
[398341671,1765538092582,-509.62,0.00040821,30]
[398341672,1765538092592,-669.04,0.00040821,30]
[398341673,1765538092601,-3771.23,0.00040821,30]
[398341674,1765538092610,-813.18,0.00040821,30]
[398341675,1765538092619,-500.0,0.00040821,30]
[398341676,1765538092628,-500.0,0.00040821,30]
[398341677,1765538092638,-1179.73,0.00040821,30]
[398341678,1765538092647,-500.0,0.00040821,30]
[398341679,1765538092657,-500.0,0.00040821,30]
[398341680,1765538092665,-1235.8,0.00040821,30]
[398341681,1765538092674,-1360.54,0.00040821,30]
[398341682,1765538092683,-604.12,0.00040821,30]
[398341683,1765538092693,-500.0,0.00040821,30]
[398341684,1765538092704,-500.0,0.00040821,30]
[398341685,1765538092713,-1586.65,0.00040821,30]
[398341686,1765538092722,-500.0,0.00040821,2]
[398341687,1765538092732,-500.0,0.00040821,30]
[398341688,1765538092741,-192.10533093,0.00040821,30]
[398341689,1765538092750,-972.77,0.00040821,30]
[398341690,1765538092759,-500.0,0.00040821,30]
[398341691,1765538092768,-505.2762997,0.00040821,30]
[398341692,1765538092778,-500.0,0.00040821,30]
[398341693,1765538092787,-500.0,0.00040821,30]
[398341694,1765538092796,-500.0,0.00040821,30]
[398341695,1765538092809,-4363.05,0.00040821,30]
[398341696,1765538092818,-731.82,0.00040821,30]
[398341697,1765538092828,-1418.58,0.00040821,30]
[398341698,1765538092837,-1625.02,0.00040821,30]
[398341699,1765538092847,-500.0,0.00040821,30]
[398341700,1765538092856,-500.0,0.00040821,30]
[398341701,1765538092864,-500.0,0.00040821,30]
[398341702,1765538092876,-500.0,0.00040821,30]
[398341703,1765538092885,-500.0,0.00040821,30]
[398341704,1765538092894,-805.19,0.00040821,30]
[398341705,1765538092904,-500.0,0.00040821,30]
[398341706,1765538092914,-1679.93,0.00040821,30]
[398341707,1765538092923,-500.0,0.00040821,30]
[398341708,1765538092932,-11739.26,0.00040821,30]
[398341709,1765538092942,-510.13,0.00040821,30]
[398341710,1765538092951,-500.0,0.00040821,30]
[398341711,1765538092960,-1704.19,0.00040821,30]
[398341712,1765538092970,-878.65,0.00040821,30]
[398341713,1765538092979,-619.07,0.00040821,30]
[398341714,1765538092988,-222.1156754,0.00040821,30]
[398341715,1765538092998,-2892.66,0.00040821,30]
[398341716,1765538093010,-500.0,0.00040821,30]
[398341717,1765538093019,-500.0,0.00040821,30]
[398341718,1765538093029,-500.0,0.00040821,30]
[398341719,1765538093045,-1899.29,0.00040821,30]
[398341720,1765538093055,-500.0,0.00040821,30]
[398341721,1765538093064,-1019.28,0.00040821,30]
[398341722,1765538093074,-500.0,0.00040821,30]
[398341723,1765538093084,-500.0,0.00040821,30]
[398341724,1765538093094,-1418.57,0.00040821,30]
[398341725,1765538093105,-500.0,0.00040821,30]
[398341726,1765538093115,-500.0,0.00040821,30]
[398341727,1765538093124,-569.0609108,0.00040821,30]
[398341728,1765538093134,-736.31,0.00040821,30]
[398341729,1765538093144,-500.0,0.00040821,30]
[398341730,1765538093154,-500.0,0.00040821,30]
[398341731,1765538093163,-803.38,0.00040821,30]
[398341732,1765538093173,-500.0,0.00040821,30]
[398341733,1765538093183,-522.15,0.00040821,30]
[398341734,1765538093193,-500.0,0.00040821,30]
[398341735,1765538093203,-500.0,0.00040821,30]
[398341736,1765538093213,-500.0,0.00040821,30]
[398341737,1765538093223,-1055.47,0.00040821,30]
[398341738,1765538093232,-694.39,0.00040821,30]
[398341739,1765538093242,-1480.3,0.00040821,30]
[398341740,1765538093251,-1529.14,0.00040821,30]
[398341741,1765538093261,-1887.69,0.00040821,30]
[398341742,1765538093271,-500.0,0.00040821,30]
[398341743,1765538093281,-1537.38,0.00040821,30]
[398341744,1765538093290,-814.49,0.00040821,30]
[398341745,1765538093300,-500.0,0.00040821,30]
[398341746,1765538093310,-500.0,0.00040821,30]
[398341747,1765538093319,-878.0,0.00040821,30]
[398341748,1765538093329,-542.52,0.00040821,30]
[398341749,1765538093339,-500.0,0.00040821,30]
[398341750,1765538093348,-500.0,0.00040821,30]
[398341751,1765538093358,-1609.53,0.00040821,30]
[398341752,1765538093367,-1220.84,0.00040821,30]
[398341753,1765538093377,-1987.44,0.00040821,30]
[398341754,1765538093394,-500.0,0.00040821,30]
[398341755,1765538093403,-1330.17,0.00040821,30]
[398341756,1765538093412,-994.63,0.00040821,30]
[398341757,1765538093422,-1382.15,0.00040821,30]
[398341758,1765538093431,-500.0,0.00040821,30]
[398341759,1765538093441,-500.0,0.00040821,30]
[398341760,1765538093450,-1159.62,0.00040821,30]
[398341761,1765538093459,-1136.89,0.00040821,30]
[398341762,1765538093468,-556.58,0.00040821,30]
[398341763,1765538093477,-9826.53,0.00040821,30]
[398341764,1765538093487,-500.0,0.00040821,30]
[398341765,1765538093497,-972.17,0.00040821,30]
[398341766,1765538093506,-500.0,0.00040821,30]
[398341767,1765538093515,-731.37,0.00040821,30]
[398341768,1765538093525,-1614.96,0.00040821,30]
[398341769,1765538093534,-500.0,0.00040821,30]
[398341770,1765538093543,-4738.09,0.00040821,30]
[398341771,1765538093552,-1327.17,0.00040821,30]
[398341772,1765538093561,-500.0,0.00040821,30]
[398341773,1765538093571,-3631.76,0.00040821,30]
[398341774,1765538093580,-500.0,0.00040821,30]
[398341775,1765538093589,-500.0,0.00040821,30]
[398341776,1765538093599,-500.0,0.00040821,30]
[398341777,1765538093609,-963.98,0.00040821,30]
[398341778,1765538093619,-634.95,0.00040821,30]
[398341779,1765538093628,-3329.8,0.00040821,30]
[398341780,1765538093638,-500.0,0.00040821,30]
[398341781,1765538093647,-500.0,0.00040821,30]
[398341782,1765538093657,-1124.07,0.00040821,30]
[398341783,1765538093667,-500.0,0.00040821,30]
[398341784,1765538093676,-876.92,0.00040821,30]
[398341785,1765538093685,-264.60340315,0.00040821,30]
[398341786,1765538093695,-249.50235839,0.00040821,30]
[398341787,1765538093704,-500.0,0.00040821,30]
[398341788,1765538093713,-500.0,0.00040821,30]
[398341789,1765538093723,-500.0,0.00040821,30]
[398341790,1765538093732,-500.0,0.00040821,30]
[398341791,1765538093741,-500.0,0.00040821,30]
[398341792,1765538093750,-500.0,0.00040821,30]
[398341793,1765538093760,-500.0,0.00040821,30]
[398341794,1765538093769,-613.85,0.00040821,30]
[398341795,1765538093778,-705.22,0.00040821,30]
[398341796,1765538093787,-500.0,0.00040821,30]
[398341797,1765538093796,-601.44,0.00040821,30]
[398341798,1765538093806,-680.86,0.00040821,30]
[398341799,1765538093815,-481.77877341,0.00040821,30]
[398341800,1765538093825,-500.0,0.00040821,30]
[398341801,1765538093834,-1255.36,0.00040821,30]
[398341802,1765538093843,-500.0,0.00040821,30]
[398341803,1765538093854,-500.0,0.00040821,30]
[398341804,1765538093864,-757.92,0.00040821,30]
[398341805,1765538093877,-500.0,0.00040821,30]
[398341806,1765538093897,-976.99,0.00040821,30]
[398341807,1765538093913,-681.9,0.00040821,30]
[398341808,1765538093923,-500.0,0.00040821,30]
[398341809,1765538093933,-766.68,0.00040821,30]
[398341810,1765538093942,-500.0,0.00040821,30]
[398341811,1765538093953,-500.0,0.00040821,30]
[398341812,1765538093964,-159.40367407,0.00040821,30]
[398341813,1765538093973,-500.0,0.00040821,30]
[398341814,1765538093982,-573.91131188,0.00040821,30]
[398341815,1765538093992,-820.89,0.00040821,30]
[398341816,1765538094005,-1425.77,0.00040821,30]
[398341817,1765538094015,-2237.4,0.00040821,30]
[398341818,1765538094024,-673.29,0.00040821,30]
[398341819,1765538094034,-574.67,0.00040821,30]
[398341820,1765538094043,-500.0,0.00040821,30]
[398341821,1765538094055,-500.0,0.00040821,30]
[398341822,1765538094064,-1020.61,0.00040821,30]
[398341823,1765538094073,-500.0,0.00040821,30]
[398341824,1765538094083,-749.57,0.00040821,30]
[398341825,1765538094092,-500.0,0.00040821,30]
[398341826,1765538094101,-558.5,0.00040821,30]
[398341827,1765538094111,-500.0,0.00040821,30]
[398341828,1765538094121,-500.0,0.00040821,30]
[398341829,1765538094130,-1224.23,0.00040821,30]
[398341830,1765538094139,-628.4,0.00040821,30]
[398341831,1765538094149,-541.47838799,0.00040821,30]
[398341832,1765538094158,-500.0,0.00040821,30]
[398341833,1765538094168,-1487.24,0.00040821,30]
[398341834,1765538094178,-500.0,0.00040821,30]
[398341835,1765538094187,-500.0,0.00040821,30]
[398341836,1765538094197,-500.0,0.00040821,30]
[398341837,1765538094207,-500.0,0.00040821,30]
[398341838,1765538094216,-643.83,0.00040821,30]
[398341839,1765538094226,-1267.76,0.00040821,30]
[398341840,1765538094235,-500.0,0.00040821,30]
[398341841,1765538094245,-554.79,0.00040821,30]
[398341842,1765538094255,-500.13,0.00040821,30]
[398341843,1765538094265,-500.0,0.00040821,30]
[398341844,1765538094274,-543.72,0.00040821,30]
[398341845,1765538094284,-1502.85,0.00040821,30]
[398341846,1765538094293,-901.37,0.00040821,30]
[398341847,1765538094303,-865.46,0.00040821,30]
[398341848,1765538094312,-1483.56,0.00040821,30]
[398341849,1765538094322,-500.0,0.00040821,30]
[398341850,1765538094332,-500.0,0.00040821,30]
[398341851,1765538094341,-500.0,0.00040821,30]
[398341852,1765538094351,-2056.86,0.00040821,30]
[398341853,1765538094360,-500.0,0.00040821,30]
[398341854,1765538094370,-598.84,0.00040821,30]
[398341855,1765538094380,-500.0,0.00040821,30]
[398341856,1765538094389,-500.0,0.00040821,30]
[398341857,1765538094399,-500.0,0.00040821,30]
[398341858,1765538094408,-500.0,0.00040821,30]
[398341859,1765538094418,-500.0,0.00040821,30]
[398341860,1765538094428,-500.0,0.00040821,30]
[398341861,1765538094437,-500.0,0.00040821,30]
[398341862,1765538094446,-386.7947792,0.00040821,30]
[398341863,1765538094618,-500.0,0.00040821,30]
[398341864,1765538094628,-2287.8,0.00040821,30]
[398341865,1765538094637,-500.0,0.00040821,30]
[398341866,1765538094649,-500.0,0.00040821,30]
[398341867,1765538094659,-500.0,0.00040821,30]
[398341868,1765538094668,-555.94,0.00040821,30]
[398341869,1765538094678,-500.0,0.00040821,30]
[398341870,1765538094687,-500.0,0.00040821,30]
[398341871,1765538094697,-500.0,0.00040821,30]
[398341872,1765538094707,-500.0,0.00040821,30]
[398341873,1765538094716,-868.9,0.00040821,30]
[398341874,1765538094726,-671.73,0.00040821,30]
[398341875,1765538094735,-500.0,0.00040821,30]
[398341876,1765538094746,-2439.55,0.00040821,30]
[398341877,1765538094755,-2828.46,0.00040821,120]
[398341878,1765538094765,-3289.05,0.00040821,30]
[398341879,1765538094775,-5959.38536385,0.00040821,30]
[398341880,1765538094784,-286.56,0.00040821,7]
[398341881,1765538094793,-1876.03,0.00040821,30]
[398341882,1765538094803,-500.0,0.00040821,30]
[398341883,1765538094812,-500.0,0.00040821,30]
[398341884,1765538094822,-500.0,0.00040821,120]
[398341885,1765538094832,-500.0,0.00040821,2]
[398341886,1765538094841,-932.972515,0.00040821,30]
[398341887,1765538094851,-168.15043,0.00040821,30]
[398341888,1765538094860,-1953.93417,0.00040821,30]
[398341889,1765538094869,-1767.482813,0.00040821,30]
[398341890,1765538094883,-171.577909,0.00040821,30]
[398341891,1765538094892,-1310.696547,0.00040821,30]
[398341892,1765538094902,-1000.0,0.00040821,120]
[398341893,1765538094912,-1014.43,0.00040821,30]
[398341894,1765538094922,-500.0,0.00040821,30]
[398341895,1765538094931,-1000.0,0.00040821,30]
[398341896,1765538094941,-352.09,0.00040821,2]
[398341897,1765538094951,-645.54,0.00040821,30]
[398341898,1765538094961,-500.0,0.00040821,30]
[398341899,1765538094971,-523.99,0.00040821,120]
[398341900,1765538094980,-500.0,0.00040821,2]
[398341901,1765538094990,-1994.45,0.00040821,30]
[398341902,1765538094999,-2057.12,0.00040821,30]
[398341903,1765538095009,-300.98574032,0.00040821,2]
[398341904,1765538095018,-500.0,0.00040821,2]
[398341905,1765538095028,-600.0,0.00040822,30]
[398341906,1765538095038,-1000.0,0.00040822,14]
[398341907,1765538095049,-800.0,0.00040822,14]
[398341908,1765538095059,-176.36785174,0.00040834,2]
[398341909,1765538095069,-155.54,0.00040884,120]
[398341910,1765538095079,-4091.491383,0.00040888,120]
[398341911,1765538095089,-3125.40763785,0.000409,30]
[398341912,1765538095099,-3254.9,0.000409,120]
[398341913,1765538095109,-2012.7332517,0.000409,120]
[398341914,1765538095118,-2000.0,0.000409,120]
[398341915,1765538095128,-210.0,0.0004093,30]
[398341916,1765538095138,-176.36785174,0.00040934,2]
[398341917,1765538095148,-6138.0,0.00040936,2]
[398341918,1765538095158,-1330.0,0.00040964,30]
[398341919,1765538095168,-1752.65773,0.0004097,7]
[398341920,1765538095178,-155.65964628,0.00040984,120]
[398341921,1765538095188,-903.0,0.00041,30]
[398341922,1765538095198,-500.0,0.00041,10]
[398341923,1765538095208,-500.0,0.00041,20]
[398341924,1765538095218,-750.0,0.00041,30]
[398341925,1765538095227,-2333.0,0.00041,120]
[398341926,1765538095237,-537.15628872,0.00041,30]
[398341927,1765538095247,-3251.18,0.00041,120]
[398341928,1765538095257,-15859.0,0.00041,120]
[398341929,1765538095266,-1000.0,0.00041,120]
[398341930,1765538095276,-900.0,0.00041,120]
[398341931,1765538095286,-500.0,0.00041,30]
[398341932,1765538095296,-500.0,0.00041,30]
[398341933,1765538095306,-1144.36,0.00041,120]
[398341934,1765538095316,-5000.0,0.00041,120]
[398341935,1765538095325,-2060.46308566,0.00041,120]
[398341936,1765538095335,-1700.55281025,0.00041,120]
[398341937,1765538095344,-1000.0,0.00041,120]
[398341938,1765538095354,-331.6999592,0.00041,120]
[398341939,1765538095365,-500.0,0.00041,7]
[398341940,1765538095375,-500.0,0.00041,120]
[398341941,1765538095385,-500.0,0.00041,120]
[398341942,1765538095395,-500.0,0.00041,120]
[398341943,1765538095405,-500.0,0.00041,120]
[398341944,1765538095415,-500.0,0.00041,120]
[398341945,1765538095425,-614.68,0.00041,120]
[398341946,1765538095434,-784.57,0.00041,10]
[398341947,1765538095444,-1514.0,0.00041,30]
[398341948,1765538095453,-1294.0,0.00041,30]
[398341949,1765538095463,-1293.0,0.00041,30]
[398341950,1765538095473,-1293.0,0.00041,30]
[398341951,1765538095483,-152.0,0.00041,90]
[398341952,1765538095493,-150.0,0.00041,60]
[398341953,1765538095502,-400.0,0.00041,120]
[398341954,1765538095512,-1023.0,0.00041,30]
[398341955,1765538095522,-1000.0,0.00041,120]
[398341956,1765538095532,-1000.0,0.00041,120]
[398341957,1765538095542,-1000.0,0.00041,120]
[398341958,1765538095551,-1000.0,0.00041,120]
[398341959,1765538095561,-171.0,0.00041013,120]
[398341960,1765538095571,-176.36785174,0.00041034,2]
[398341961,1765538095581,-200.88773278,0.0004104,27]
[398341962,1765538095591,-1346.3,0.00041041,7]
[398341963,1765538095600,-300.121138,0.00041054,104]
[398341964,1765538095610,-1203.047361,0.00041068,120]
[398341965,1765538095620,-1203.047361,0.00041068,120]
[398341966,1765538095630,-1203.047361,0.00041068,120]
[398341967,1765538095640,-1203.047361,0.00041068,120]
[398341968,1765538095649,-1203.047361,0.00041068,120]
[398341970,1765538095659,-1203.047361,0.00041068,120]
[398341971,1765538095669,-1203.047361,0.00041068,120]
[398341972,1765538095678,-1203.047361,0.00041068,120]
[398341973,1765538095688,-1203.047361,0.00041068,120]
[398341974,1765538095698,-1203.047361,0.00041068,120]
[398341975,1765538095707,-1203.047361,0.00041068,120]
[398341976,1765538095717,-1203.047361,0.00041068,120]
[398341977,1765538095726,-1203.047361,0.00041068,120]
[398341978,1765538095736,-1203.047361,0.00041068,120]
[398341979,1765538095745,-1203.047361,0.00041068,120]
[398341980,1765538095754,-1203.047361,0.00041068,120]
[398341981,1765538095765,-1203.047361,0.00041068,120]
[398341982,1765538095774,-1203.047361,0.00041068,120]
[398341983,1765538095784,-1203.047361,0.00041068,120]
[398341984,1765538095793,-1203.047355,0.00041068,120]
[398341985,1765538095803,-6138.0,0.00041073,2]
[398341986,1765538095813,-500.0,0.00041095,30]
[398341987,1765538095823,-500.0,0.00041095,120]
[398341988,1765538095832,-500.0,0.00041095,120]
[398341989,1765538095842,-1820.62,0.00041095,120]
[398341990,1765538095853,-1820.62,0.00041095,120]
[398341991,1765538095862,-1820.62,0.00041095,120]
[398341992,1765538095876,-1820.62,0.00041095,120]
[398341993,1765538095893,-1820.62,0.00041095,120]
[398341994,1765538095903,-1820.62,0.00041095,120]
[398341995,1765538095912,-1820.62,0.00041095,120]
[398341996,1765538095921,-1820.62,0.00041095,120]
[398341997,1765538095932,-1820.62,0.00041095,120]
[398341998,1765538095942,-1820.62,0.00041095,120]
[398341999,1765538095952,-1820.62,0.00041095,120]
[398342000,1765538095961,-1820.62,0.00041095,120]
[398342001,1765538095971,-1820.62,0.00041095,120]
[398342002,1765538095981,-1820.62,0.00041095,120]
[398342003,1765538095991,-1820.62,0.00041095,120]
[398342004,1765538096001,-1820.62,0.00041095,120]
[398342005,1765538096011,-1820.62,0.00041095,120]
[398342006,1765538096021,-1820.62,0.00041095,120]
[398342007,1765538096030,-1820.62,0.00041095,120]
[398342008,1765538096040,-1820.62,0.00041095,120]
[398342009,1765538096050,-1820.62,0.00041095,120]
[398342010,1765538096059,-1820.62,0.00041095,120]
[398342011,1765538096069,-1820.62,0.00041095,120]
[398342012,1765538096079,-1820.6485888,0.00041095,120]
[398342013,1765538096089,-643.07214777,0.00041095,120]
[398342014,1765538096099,-500.0,0.00041095,30]
[398342015,1765538096108,-500.0,0.00041095,30]
[398342016,1765538096121,-500.0,0.00041095,30]
[398342017,1765538096130,-1824.08,0.00041095,30]
[398342018,1765538096140,-500.0,0.00041095,30]
[398342019,1765538096149,-651.26,0.00041095,30]
[398342020,1765538096159,-500.0,0.00041095,30]
[398342021,1765538096169,-304.79955138,0.00041095,30]
[398342022,1765538096179,-500.0,0.00041095,30]
[398342023,1765538096189,-768.58,0.00041095,30]
[398342024,1765538096199,-500.0,0.00041095,30]
[398342025,1765538096210,-604.69,0.00041095,30]
[398342026,1765538096220,-500.0,0.00041095,30]
[398342027,1765538096230,-1703.32,0.00041095,30]
[398342028,1765538096241,-601.55,0.00041095,7]
[398342029,1765538096251,-662.42,0.00041095,30]
[398342030,1765538096261,-693.68,0.00041095,30]
[398342031,1765538096271,-500.0,0.00041095,30]
[398342032,1765538096281,-500.0,0.00041095,30]
[398342033,1765538096291,-500.0,0.00041095,30]
[398342034,1765538096301,-500.0,0.00041095,30]
[398342035,1765538096311,-1436.54,0.00041095,30]
[398342036,1765538096321,-500.0,0.00041095,30]
[398342037,1765538096331,-500.0,0.00041095,30]
[398342038,1765538096340,-500.0,0.00041095,30]
[398342039,1765538096350,-500.0,0.00041095,30]
[398342040,1765538096360,-500.0,0.00041095,30]
[398342041,1765538096369,-500.0,0.00041095,30]
[398342042,1765538096379,-500.0,0.00041095,30]
[398342043,1765538096390,-500.0,0.00041095,30]
[398342044,1765538096399,-500.0,0.00041095,30]
[398342045,1765538096409,-698.57,0.00041095,30]
[398342046,1765538096419,-303.10788949,0.00041095,30]
[398342047,1765538096429,-789.19,0.00041095,30]
[398342048,1765538096439,-500.0,0.00041095,30]
[398342049,1765538096449,-500.0,0.00041095,30]
[398342050,1765538096459,-627.23,0.00041095,30]
[398342051,1765538096469,-500.0,0.00041095,30]
[398342052,1765538096479,-772.34,0.00041095,30]
[398342053,1765538096488,-500.0,0.00041095,30]
[398342054,1765538096498,-569.12592933,0.00041095,30]
[398342055,1765538096508,-500.0,0.00041095,30]
[398342056,1765538096517,-741.68,0.00041095,30]
[398342057,1765538096528,-545.86,0.00041095,30]
[398342058,1765538096538,-625.45,0.00041095,30]
[398342059,1765538096547,-646.79,0.00041095,30]
[398342060,1765538096557,-646.65,0.00041095,30]
[398342061,1765538096567,-214.02402096,0.00041095,30]
[398342062,1765538096576,-500.0,0.00041095,30]
[398342063,1765538096585,-794.95,0.00041095,30]
[398342064,1765538096593,-500.0,0.00041095,30]
[398342065,1765538096602,-687.17,0.00041095,30]
[398342066,1765538096611,-500.0,0.00041095,30]
[398342067,1765538096619,-515.45954311,0.00041095,30]
[398342068,1765538096627,-500.0,0.00041095,30]
[398342069,1765538096636,-885.09,0.00041095,30]
[398342070,1765538096645,-1097.95,0.00041095,30]
[398342071,1765538096655,-500.0,0.00041095,30]
[398342072,1765538096664,-500.0,0.00041095,30]
[398342073,1765538096674,-500.0,0.00041095,30]
[398342074,1765538096683,-837.55,0.00041095,30]
[398342075,1765538096693,-540.22,0.00041095,30]
[398342076,1765538096702,-500.0,0.00041095,30]
[398342077,1765538096712,-519.63,0.00041095,30]
[398342078,1765538096722,-500.0,0.00041095,30]
[398342079,1765538096731,-1294.43,0.00041095,30]
[398342080,1765538096741,-500.0,0.00041095,30]
[398342081,1765538096751,-500.0,0.00041095,30]
[398342082,1765538096761,-1011.88,0.00041095,30]
[398342083,1765538096771,-500.0,0.00041095,30]
[398342084,1765538096780,-614.81594356,0.00041095,30]
[398342085,1765538097183,-500.0,0.00041095,30]
[398342086,1765538097197,-1196.03,0.00041095,30]
[398342087,1765538097207,-617.95,0.00041095,30]
[398342088,1765538097216,-548.66,0.00041095,30]
[398342089,1765538097225,-500.0,0.00041095,30]
[398342090,1765538097235,-500.0,0.00041095,30]
[398342091,1765538097244,-678.18,0.00041095,30]
[398342092,1765538097254,-500.0,0.00041095,30]
[398342093,1765538097264,-500.0,0.00041095,30]
[398342094,1765538097273,-585.26,0.00041095,30]
[398342095,1765538097284,-500.0,0.00041095,30]
[398342096,1765538097293,-441.97557742,0.00041095,30]
[398342097,1765538097303,-500.0,0.00041095,30]
[398342098,1765538097313,-500.0,0.00041095,30]
[398342099,1765538097322,-672.38,0.00041095,30]
[398342100,1765538097332,-542.28,0.00041095,30]
[398342101,1765538097341,-500.0,0.00041095,30]
[398342102,1765538097351,-500.0,0.00041095,30]
[398342103,1765538097361,-755.36,0.00041095,30]
[398342104,1765538097370,-1228.59,0.00041095,30]
[398342105,1765538097379,-1439.79,0.00041095,30]
[398342106,1765538097389,-500.0,0.00041095,30]
[398342107,1765538097398,-864.07,0.00041095,30]
[398342108,1765538097407,-500.0,0.00041095,30]
[398342109,1765538097417,-573.95,0.00041095,30]
[398342110,1765538097426,-498.10367223,0.00041095,30]
[398342111,1765538097435,-500.0,0.00041095,30]